[Event "Reykjavik Open 2025"]
[Site "Reykjavik"]
[Date "2025.04.10"]
[Round "3.6"]
[White "Muradli, Mahammad"]
[Black "Willems, Niels"]
[Result "1-0"]
[Annotator "TA"]
[ECO "A34"]
[WhiteElo "2588"]
[BlackElo "2394"]
[PlyCount "103"]
[EventDate "2025.04.09"]
[EventType "swiss"]
[EventCountry "ISL"]
[SourceTitle "playchess.com"]
[Source "ChessBase"]
[SourceQuality "1"]
[TimeControl "40/5400+30:1800+30"]

{[%evp 18,103,32,29,31,29,32,18,22,16,18,11,32,12,12,12,18,8,24,16,20,20,24,18,47,43,48,49,59,59,55,52,54,58,52,35,41,130,35,36,40,6,10,0,0,0,0,-43,-44,-39,-41,-29,-40,-45,8,21,31,23,64,56,164,157,166,153,162,143,139,139,363,339,457,426,413,416,435,406,526,506,524,510,1038,1012,29969,29971,29962,6636,5568,2505]} 1. Nf3 {[%emt 0:02:59]} Nf6 {[%emt 0:00:08]} 2. c4 {[%emt 0:00:06]} c5 {[%emt 0:00:10]} 3. Nc3 {[%emt 0:00:16][%cal Bb1c3,Bc3d1,Bd1e3,Be3c4,Bc4a5][%mdl 32]} Nc6 {[%emt 0:00:12]} 4. g3 {[%emt 0:00:43]} d5 {[%emt 0:00:16]} 5. d4 {[%emt 0:00:09]} cxd4 {[%emt 0:00:16]} 6. Nxd4 {[%emt 0:00:08]} dxc4 {[%emt 0:00:10]} 7. Nxc6 {[%emt 0:00:18]} Qxd1+ {[%emt 0:00:08]} 8. Nxd1 {[%emt 0:00:06]} bxc6 {[%emt 0:00:07]} 9. Bg2 {[%emt 0:00:10]} Nd5 {[%emt 0:00:32]} 10. Ne3 {[%emt 0:00:15]} e6 {[%emt 0:00:16] A34: Symmetrical English: 2 Nc3, lines with ...d5.} 11. Nxc4 {[%emt 0:00:06]} Ba6 {[%emt 0:00:32]} 12. Na5 {[%emt 0:05:05]} Rc8 {[%emt 0:00:31] The position is equal.} 13. Bd2 {[%emt 0:01:26]} Be7 {[%emt 0:00:27][%cal Bf8e7,Be7f6,Bf6b2][%mdl 32]} 14. Rc1 {[%emt 0:01:56]} c5 {[%emt 0:00:17]} 15. b3 {[%emt 0:04:27]} O-O {[%emt 0:00:41]} 16. O-O {[%emt 0:07:56]} Rfd8 {[%emt 0:00:19]} (16... Bxe2 $2 17. Rfe1 $18) 17. Bf3 {[%emt 0:01:07]} Bf6 {[%emt 0:00:22]} 18. Rfd1 {[%emt 0:07:08]} Bb2 {[%emt 0:00:34]} 19. Rc2 {[%emt 0:04:22]} Ba3 {[%emt 0:00:12]} (19... Nc3 $2 20. Re1 $18 (20. Bxc3 $2 Rxd1+ 21. Kg2 Bxc3 $19)) 20. Be1 $146 {[%emt 0:02:37]} (20. Nc4 Bxc4 21. bxc4 Nb4 22. Rc3 Bb2 23. Rb3 Bf6 24. e3 Nxa2 25. Ra3 Nb4 26. Rxa7 {½-½ Navara,D (2729)-L'Ami,E (2613) Tata Steel-B 77th 2015 (1)}) 20... Nb6 {[%emt 0:17:24]} 21. Rxd8+ {[%emt 0:06:55]} Rxd8 {[%emt 0:00:07]} 22. Bd2 {[%emt 0:02:46]} Rd7 {[%emt 0:11:02]} 23. Nc6 {[%emt 0:08:03] [#]} Bb5 {[%emt 0:05:42]} 24. Be3 {[%emt 0:01:43]} Bxc6 $1 {[%emt 0:02:56]} 25. Bxc6 {[%emt 0:00:04]} Rc7 {[%emt 0:00:21]} 26. Rd2 {[%emt 0:06:24][%cal Rd2d8]} Kf8 {[%emt 0:03:35]} 27. Rd8+ {[%emt 0:00:17]} Ke7 {[%emt 0:00:02]} 28. Re8+ {[%emt 0:00:09]} Kf6 {[%emt 0:00:03]} 29. Be4 {[%emt 0:03:22][%cal Oh2h4] This pair of bishops is nice.} Nd5 {[%emt 0:06:03]} 30. Bxd5 {[%emt 0:05:13]} ({Weaker is} 30. Bxh7 Nxe3 31. fxe3 g6 $17) 30... exd5 $11 {[%emt 0:00:09][%mdl 4096] Endgame KRB-KRB} 31. Bf4 {[%emt 0:00:27]} Rc6 {[%emt 0:01:11]} 32. Rd8 {[%emt 0:14:08]} c4 {[%emt 0:06:35]} 33. Rxd5 {[%emt 0:00:50]} c3 {[%emt 0:00:11]} 34. Ra5 $1 {[%emt 0:00:08][%csl LRa3,LRa7]} Bb2 {[%emt 0:10:17]} 35. Be5+ {[%emt 0:00:11]} Ke6 {[%emt 0:00:08]} (35... Kg6 $1 $15) 36. Bxg7 {[%emt 0:00:32]} f6 {[%emt 0:03:50]} 37. Rxa7 {[%emt 0:03:07]} Bc1 {[%emt 0:02:39][%cal Oc1e3] and ...Be3! would now be decisive Prevents Bh6} 38. Bf8 {[%emt 0:00:14]} f5 {[%emt 0:05:16]} ({Black should try} 38... h6 $14) 39. Rxh7 $18 {[%emt 0:02:24]} c2 {[%emt 0:00:29] [#]} 40. Kg2 $1 {[%emt 0:02:41]} Rc8 {[%emt 0:24:08]} 41. Bb4 {[%emt 0:31:04]} Bg5 {[%emt 0:24:37]} 42. Ba3 {[%emt 0:00:00] and f4 would now be decisive} f4 $2 {[%emt 0:03:42] Loses the game.} (42... c1=B $16) 43. h4 {[%emt 0:00:00]} Bd8 {[%emt 0:00:15]} 44. Bc1 {[%emt 0:00:00]} (44. gxf4 c1=Q 45. Bxc1 Rxc1 $18) 44... fxg3 {[%emt 0:00:20]} 45. fxg3 {[%emt 0:00:00]} (45. Kxg3 Rc5 46. e4 Rc3+ 47. Kg4 Rd3 48. Rh6+ Kd7 $14) 45... Ra8 {[%emt 0:00:51]} 46. a4 {[%emt 0:00:00][%cal Ba2a4,Ba4b5][%mdl 32]} Ba5 {[%emt 0:03:00]} 47. Rh5 {[%emt 0:00:00]} Bb4 {[%emt 0:00:41]} 48. Rg5 {[%emt 0:00:00]} Rb8 {[%emt 0:01:25]} (48... Kf7 $142 49. g4 (49. Kf3 Rd8 $18) 49... Rd8) 49. Rb5 {[%emt 0:00:00]} Rxb5 {[%emt 0:00:21]} 50. axb5 {[%emt 0:00:00]} Kd5 {[%emt 0:00:12]} 51. h5 {[%emt 0:00:00]} (51. Kf3 $142 Be7 52. h5 Kc5 53. g4 Kd6 54. b6 Ke5 55. g5 Kf5 56. g6) 51... Kc5 {[%emt 0:01:06]} 52. Kf3 {[%emt 0:00:00] Weighted Error Value: White=0.19 (very precise) /Black=0.49  Loses game:     	---       	Black=1      Mistake:       	---       	Black=3      Inaccurate:     	White=2     	Black=4      OK:         	White=23    	Black=18     Best:        	White=4     	Black=1      Strong:       	White=1     	Black=1} 1-0

[Event "Reykjavik Open 2025"]
[Site "Reykjavik"]
[Date "2025.04.10"]
[Round "3.7"]
[White "Terrieux, Kevin"]
[Black "Gupta, Abhijeet"]
[Result "0-1"]
[Annotator "TA"]
[ECO "B51"]
[WhiteElo "2394"]
[BlackElo "2576"]
[PlyCount "108"]
[EventDate "2025.04.09"]
[EventType "swiss"]
[EventCountry "ISL"]
[SourceTitle "playchess.com"]
[Source "ChessBase"]
[SourceQuality "1"]
[TimeControl "40/5400+30:1800+30"]

{[%evp 9,108,20,18,14,17,0,35,43,43,37,39,38,36,29,31,30,12,0,0,0,0,0,0,0,7,7,39,30,30,23,34,0,19,25,16,19,22,4,27,0,2,0,0,0,0,0,16,12,19,14,21,0,0,-5,-2,-5,0,-16,-7,-9,-8,-20,-6,-29,-13,-29,-9,-21,-20,-18,-12,-9,-14,-28,-7,-8,-8,-9,-8,-8,0,-14,0,0,0,0,0,-87,-78,-126,-33,-45,0,-693,-691,-809,-808,-870,-866,-781,-766]} 1. e4 {[%emt 0:00:28]} c5 {[%emt 0:00:42]} 2. Nf3 {[%emt 0:00:18]} d6 {[%emt 0:00:08]} 3. Bb5+ {[%emt 0:00:07]} Nd7 {[%emt 0:00:34]} 4. d4 {[%emt 0:00:13]} cxd4 {[%emt 0:00:18]} 5. Qxd4 {[%emt 0:00:10]} a6 {[%emt 0:00:22]} 6. Be2 {[%emt 0:00:11] B51: Sicilian: Moscow Variation (3 Bb5+) without 3...Bd7.} Ngf6 {[%emt 0:01:24]} 7. O-O {[%emt 0:00:27]} e6 {[%emt 0:04:49]} 8. c4 {[%emt 0:02:31] White is slightly better.} b6 $5 {[%emt 0:02:18][%mdl 4] Leaves trodden paths.} 9. Nc3 {[%emt 0:01:53]} Bb7 {[%emt 0:00:08]} 10. Rd1 {[%emt 0:04:26]} Be7 {[%emt 0:02:38]} 11. b3 {[%emt 0:00:32]} O-O {[%emt 0:03:41]} 12. Ba3 {[%emt 0:02:02]} Nc5 {[%emt 0:03:25]} 13. e5 $146 {[%emt 0:01:38]} (13. Nd2 Qc7 14. b4 Ncd7 15. Bb2 Rac8 16. Rac1 Rfe8 17. a3 Qb8 18. Nf1 Bd8 19. Ng3 {0-1 Huschenbeth,N (2612)-Vachier Lagrave,M (2778) Bundesliga 1920 final 2020 (2.1)}) 13... dxe5 {[%emt 0:02:18]} 14. Qxe5 {[%emt 0:07:09]} Qc8 {[%emt 0:03:25] Threatens to win with ...Ncd7.} 15. Bb2 {[%emt 0:02:03]} Ncd7 {[%emt 0:03:56]} 16. Qf4 {[%emt 0:02:58]} Qc6 {[%emt 0:01:08]} 17. Ne1 {[%emt 0:09:36]} e5 {[%emt 0:04:35]} 18. Qf5 {[%emt 0:02:30]} g6 {[%emt 0:07:30]} 19. Qh3 {[%emt 0:01:17]} Rad8 {[%emt 0:01:10]} 20. Nf3 {[%emt 0:13:23]} Qc8 {[%emt 0:09:05]} 21. Ng5 {[%emt 0:10:25]} Nc5 {[%emt 0:06:39]} 22. Qxc8 {[%emt 0:00:38]} Bxc8 {[%emt 0:02:26]} (22... Rxc8 {simplifies} 23. Nf3 Bxf3 24. Bxf3 e4) 23. b4 {[%emt 0:01:52]} Ne6 {[%emt 0:03:52]} 24. Nxe6 {[%emt 0:02:37]} Bxe6 {[%emt 0:00:03]} 25. a3 {[%emt 0:00:33]} a5 {[%emt 0:07:04]} 26. Nb5 {[%emt 0:06:45]} axb4 {[%emt 0:02:44]} 27. axb4 {[%emt 0:00:09]} ({Much weaker is} 27. Bxe5 Rxd1+ 28. Rxd1 bxa3 29. Nxa3 Rc8 $15) 27... Rxd1+ {[%emt 0:01:00]} 28. Rxd1 {[%emt 0:00:15]} Bxb4 {[%emt 0:00:06]} 29. Bxe5 {[%emt 0:00:34]} Nd7 {[%emt 0:00:58]} 30. Bd4 {[%emt 0:08:49]} Rc8 {[%emt 0:02:02]} 31. f3 {[%emt 0:07:28]} Bc5 {[%emt 0:01:01]} (31... Bxc4 $2 32. Rc1 $18) 32. Bxc5 {[%emt 0:04:09]} Rxc5 {[%emt 0:01:14]} 33. Nd6 {[%emt 0:01:59]} Kf8 {[%emt 0:01:42]} 34. Ne4 {[%emt 0:03:11]} Ra5 {[%emt 0:00:05]} 35. f4 {[%emt 0:02:20]} h6 {[%emt 0:00:26]} 36. Rd2 {[%emt 0:01:51]} Ke7 {[%emt 0:00:26]} 37. Kf2 {[%emt 0:00:08]} Ra3 {[%emt 0:00:47]} 38. Rd3 {[%emt 0:01:20]} Ra4 {[%emt 0:01:45]} 39. Re3 {[%emt 0:00:29]} Ra2 {[%emt 0:00:11]} (39... Bxc4 $2 {perishes.} 40. Nc5+ (40. Nc3+ Be6 $18) 40... Be6 41. Nxa4 $18) 40. Nc3 {[%emt 0:00:21]} Rb2 {[%emt 0:01:02]} 41. Nb5 {[%emt 0:06:45]} Kd8 {[%emt 0:01:39]} 42. Kf3 {[%emt 0:03:22]} Nc5 {[%emt 0:01:37]} 43. g4 {[%emt 0:03:02][%cal Bg2g4,Bg4g5][%mdl 32]} Rd2 {[%emt 0:03:41]} 44. h3 {[%emt 0:05:48]} f5 {[%emt 0:02:53]} 45. g5 {[%emt 0:03:30]} h5 {[%emt 0:04:10]} 46. Rc3 {[%emt 0:02:14]} h4 {[%emt 0:02:14]} 47. Ke3 {[%emt 0:00:41]} Ra2 {[%emt 0:00:04]} 48. Rc1 {[%emt 0:02:11] [#]} (48. Nd4 $11) 48... Bd7 $1 $17 {[%emt 0:01:50] Black is more active.} 49. Bf3 {[%emt 0:06:28] [#]} (49. Rd1 $142) 49... Rh2 {[%emt 0:03:23]} (49... Bxb5 $1 $17 50. cxb5 Ra3+ 51. Ke2 Ke7) 50. Rh1 {[%emt 0:00:45]} Rc2 {[%emt 0:00:18]} 51. Kd4 $2 {[%emt 0:00:26][%mdl 8192]} (51. Bd5 $11) 51... Rd2+ $19 {[%emt 0:01:35] Black is clearly winning.} 52. Ke5 {[%emt 0:00:24]} Bxb5 {[%emt 0:02:21]} 53. cxb5 {[%emt 0:00:11]} Ke7 {[%emt 0:00:07][%cal Rc5d7]} 54. Bc6 {[%emt 0:01:06]} Rd6 {[%emt 0:01:20] Weighted Error Value: White=0.27 (precise) /Black=0.09 (flawless)   Loses game:     	White=1     	---        Mistake:       	White=2     	Black=1      Inaccurate:     	White=1     	Black=3      OK:         	White=15    	Black=17     Best:        	White=1     	Black=1      Strong:       	---       	Black=1} 0-1

[Event "Reykjavik Open 2025"]
[Site "Reykjavik"]
[Date "2025.04.10"]
[Round "3.8"]
[White "Jacobson, Brandon"]
[Black "Heimisson, Hilmir Freyr"]
[Result "1-0"]
[Annotator "TA"]
[ECO "A20"]
[WhiteElo "2570"]
[BlackElo "2376"]
[PlyCount "203"]
[EventDate "2025.04.09"]
[EventType "swiss"]
[EventCountry "ISL"]
[SourceTitle "playchess.com"]
[Source "ChessBase"]
[SourceQuality "1"]
[TimeControl "40/5400+30:1800+30"]

{[%evp 9,203,10,10,26,104,72,115,117,107,79,117,121,129,132,137,101,104,110,103,103,96,97,99,98,100,101,97,95,113,83,93,88,108,97,140,135,133,113,126,120,126,123,129,126,141,95,133,88,146,157,214,101,84,73,83,73,92,104,106,45,45,50,43,43,59,55,59,59,59,59,59,59,59,59,59,52,59,59,59,59,59,59,59,53,67,0,62,0,0,0,52,43,73,66,63,57,68,0,0,7,0,12,12,0,12,11,14,29,10,11,18,22,16,0,0,0,0,0,0,0,8,8,8,8,8,8,8,8,9,8,9,8,26,26,26,26,28,30,32,37,38,38,177,157,467,323,293,288,621,564,954,971,932,918,1862,1710,5312,824,4602,716,662,0,724,0,666,0,29952,29952,29977,864,5089,4590,29984,29982,29982,29982,29985,29986,29986,29987,29986,29984,29979,0,29986,29987,29987,29988,29988,29989,29989,29989,29991,29992,29992,29985]} 1. c4 {[%emt 0:03:35]} e5 {[%emt 0:00:05]} 2. g3 {[%emt 0:00:41]} Nf6 {[%emt 0:00:56]} 3. Bg2 {[%emt 0:00:07]} c6 {[%emt 0:00:10]} 4. d4 {[%emt 0:00:47]} e4 {[%emt 0:00:23]} 5. Bg5 {[%emt 0:00:31]} Bb4+ {[%emt 0:15:20]} 6. Nc3 {[%emt 0:00:32][%cal Og2e4] A20: English Opening: 1...e5.} O-O {[%emt 0:00:42]} (6... d5 $11) 7. Bxe4 $1 $16 {[%emt 0:06:03]} h6 {[%emt 0:35:32]} 8. Bxf6 {[%emt 0:00:42] White is better.} Qxf6 {[%emt 0:00:07]} 9. e3 $146 {[%emt 0:01:01]} (9. Bg2 d6 10. Nf3 Be6 11. Qb3 Na6 12. a3 Bxc3+ 13. Qxc3 Nc7 14. O-O Rfe8 15. Rfe1 {1-0 Pinheiro,I (2320)-Ricaurte Lopez,J (2226) Titled Tuesday intern op 26th Apr Late blitz 2022 (2)}) 9... d6 {[%emt 0:23:59]} 10. Nge2 {[%emt 0:01:11]} Re8 {[%emt 0:03:48]} 11. Bg2 {[%emt 0:02:50]} Bg4 {[%emt 0:01:03]} 12. O-O {[%emt 0:09:45]} Bxc3 {[%emt 0:00:17]} 13. bxc3 {[%emt 0:00:05]} Nd7 {[%emt 0:00:17][%cal Bb8d7,Bd7b6,Bb6c4,Bc4e5][%mdl 32]} 14. f3 {[%emt 0:02:07]} Be6 {[%emt 0:03:48]} 15. d5 $1 {[%emt 0:00:06]} Bf5 {[%emt 0:00:10]} 16. e4 {[%emt 0:07:36]} Bh7 {[%emt 0:00:06]} 17. Rb1 {[%emt 0:00:37]} Nb6 {[%emt 0:00:29]} 18. Qb3 {[%emt 0:01:14]} Rac8 {[%emt 0:02:43]} 19. Bh3 {[%emt 0:02:55]} Rc7 {[%emt 0:01:01]} 20. Nd4 {[%emt 0:00:12]} cxd5 {[%emt 0:03:11]} 21. cxd5 {[%emt 0:00:05]} Nc4 {[%emt 0:01:05]} 22. Rf2 $40 {[%emt 0:13:09][%mdl 128] Dodges Nd2. White is out for blood.} a6 {[%emt 0:00:06]} 23. Bf1 {[%emt 0:06:21]} Ne5 {[%emt 0:00:10]} 24. Qa3 {[%emt 0:00:06]} Nd7 {[%emt 0:02:20] Repels Rb6} 25. Qa5 {[%emt 0:02:46]} Qd8 {[%emt 0:01:41]} 26. Rfb2 {[%emt 0:10:42] White is much more active.} Nc5 {[%emt 0:00:07]} 27. Nb3 {[%emt 0:00:55]} (27. Bh3 $142 {[%cal Od4c6] Black must now prevent Nc6!.} Kh8 28. Rd1) 27... Nd7 {[%emt 0:00:18]} 28. Nd2 {[%emt 0:05:13]} Qb8 {[%emt 0:01:53]} (28... Nc5 $142) 29. Nc4 {[%emt 0:01:19][%cal Oa5a3]} Qa7+ {[%emt 0:02:33]} (29... Rf8 $16 30. Ne3 (30. Nxd6 Rc5 $17) 30... Rfc8) 30. Kh1 {[%emt 0:00:06]} (30. Kg2 $18 b5 31. Nxd6) 30... Rxc4 {[%emt 0:00:34]} 31. Bxc4 {[%emt 0:02:42][%cal Oa5c7]} Qe3 {[%emt 0:00:11]} 32. Rf1 {[%emt 0:05:21]} (32. Rxb7 Qxf3+ 33. Kg1 Bxe4 (33... Qxe4 $2 34. Rf1 $19) 34. R1b2 Qh1+ (34... Nc5 $2 35. Re2 $19) 35. Kf2 Qg2+ (35... Qxh2+ 36. Ke3 Bc2+ 37. Kf3 Ne5+ 38. Ke3 Nd3+ 39. Re7 Rxe7+ 40. Kf3 Qe2#) (35... Nc5 $2 36. Rb8 $19) 36. Ke3 Bh7+ 37. Kf4 Qe4#) 32... Bxe4 {[%emt 0:00:45] [#]} 33. Be2 {[%emt 0:00:01]} Bf5 {[%emt 0:00:30] [#]} 34. g4 {[%emt 0:00:15]} (34. Kg2 $1 $16) 34... Bd3 $14 {[%emt 0:00:28] Repels c4} 35. Bxd3 {[%emt 0:02:04]} (35. Rxb7 $2 Bxe2 $19 (35... Qxe2 $2 36. Rbb1 $19)) 35... Qxd3 {[%emt 0:00:01]} 36. Rbf2 {[%emt 0:00:05]} Nc5 {[%emt 0:00:37]} 37. Qb4 {[%emt 0:01:02]} Qxd5 {[%emt 0:00:14]} 38. Qd4 {[%emt 0:00:02] Prevents Nd3.} Qc6 {[%emt 0:00:19]} 39. c4 {[%emt 0:01:19]} Re6 {[%emt 0:00:37]} 40. h3 {[%emt 0:02:31]} Qe8 {[%emt 0:00:50]} 41. Kg2 {[%emt 0:33:18]} Qe7 {[%emt 0:03:57]} 42. Rd1 {[%emt 0:00:00]} Rf6 {[%emt 0:12:32]} 43. Kh2 {[%emt 0:00:00]} Re6 {[%emt 0:00:48]} 44. Rdd2 {[%emt 0:00:00]} Nd7 {[%emt 0:03:09]} 45. Kg2 {[%emt 0:00:00]} Nc5 {[%emt 0:01:22]} 46. Qd5 {[%emt 0:00:00]} Qe8 {[%emt 0:01:09]} 47. Qd4 {[%emt 0:00:00]} Qe7 {[%emt 0:00:07]} 48. Qf4 {[%emt 0:00:00]} (48. Kg1 $14) 48... Re5 $11 {[%emt 0:03:07]} 49. Rd1 {[%emt 0:00:00]} Re6 {[%emt 0:00:58]} (49... Ne6 $11 50. Qc1 Qc7) 50. Rd4 $14 {[%emt 0:00:00]} Re5 {[%emt 0:00:45]} 51. Qd2 {[%emt 0:00:00]} Re6 {[%emt 0:00:57]} 52. Rd5 {[%emt 0:00:00]} Nd7 {[%emt 0:00:44]} 53. Kh2 {[%emt 0:00:00]} (53. Qd4 $14) 53... Ne5 $11 {[%emt 0:02:45]} 54. Qd4 {[%emt 0:00:00]} Qc7 {[%emt 0:00:38]} 55. f4 {[%emt 0:06:13][%cal Bf3f4,Bf4f5][%mdl 32]} Nxc4 {[%emt 0:00:17]} 56. g5 {[%emt 0:00:02]} h5 {[%emt 0:04:40]} 57. f5 {[%emt 0:07:24][%mdl 1024] White has compensation.} Re8 {[%emt 0:00:06]} (57... Re1 58. g6 Ne3 59. Qa7 Qd8) 58. Rc2 {[%emt 0:00:23]} b5 {[%emt 0:00:20]} 59. g6 {[%emt 0:00:39]} Qe7 {[%emt 0:00:59] [#] Inhibits Qh4.} 60. f6 $1 {[%emt 0:00:57]} Qxf6 {[%emt 0:00:46]} 61. Qxf6 {[%emt 0:00:04]} (61. gxf7+ {with more complications.} Qxf7 62. Rf2 Qc7 63. Rxh5 d5+ 64. Qf4) 61... gxf6 {[%emt 0:00:01]} 62. gxf7+ {[%emt 0:00:06]} Kxf7 {[%emt 0:00:08]} 63. Rxh5 {[%emt 0:00:11][%mdl 4096] Endgame KRR-KRN} Ke6 {[%emt 0:01:05]} 64. Rh7 {[%emt 0:00:29]} Rc8 {[%emt 0:01:25]} 65. Ra7 {[%emt 0:00:19]} Rc6 {[%emt 0:00:04]} 66. h4 {[%emt 0:00:17]} d5 {[%emt 0:00:37]} 67. Ra8 {[%emt 0:02:57]} Rd6 $1 {[%emt 0:00:28]} 68. Re2+ {[%emt 0:01:53]} Ne5 {[%emt 0:00:25]} 69. h5 {[%emt 0:00:29]} d4 {[%emt 0:00:26]} 70. h6 {[%emt 0:00:03]} Rd7 {[%emt 0:00:23]} 71. Rxa6+ {[%emt 0:00:11]} Kf5 $1 {[%emt 0:00:28]} 72. Kg3 {[%emt 0:00:49]} d3 $1 {[%emt 0:00:29]} 73. Rf2+ {[%emt 0:00:48]} Ke4 $1 {[%emt 0:00:09]} 74. Rf4+ {[%emt 0:00:33]} (74. Rfxf6 d2 75. Rf1 (75. Rf4+ Ke3 $17) 75... d1=R $15 (75... d1=B 76. Rf4+ Kd5 77. Rf2 $14) (75... d1=Q 76. Rxd1 Rxd1 77. h7 $17)) 74... Ke3 {[%emt 0:00:51] and ...d2 should not be overlooked} 75. Ra3 $1 {[%emt 0:00:02][%cal Oa3b3]} Rf7 {[%emt 0:00:49] White now steadily converts the win.} (75... f5 $14) 76. Rb3 $18 {[%emt 0:00:39]} Ke2 $2 {[%emt 0:00:37]} (76... Rf8 $16 77. h7 (77. Rxb5 $2 Rg8+ 78. Kh2 Kxf4 $19) 77... Rh8) 77. Rf2+ {[%emt 0:00:11]} (77. Re4+ Kd2 78. Rxb5 Rh7 $18) 77... Ke3 {[%emt 0:00:07]} 78. Rxb5 {[%emt 0:00:31]} Re7 $2 {[%emt 0:00:44]} (78... Rd7 79. Rb3 (79. Rxf6 d2 $18) 79... Kd4) 79. Rxf6 {[%emt 0:01:04]} d2 {[%emt 0:00:29]} 80. Rd5 {[%emt 0:00:09]} Nc4 {[%emt 0:00:36]} 81. Rf4 {[%emt 0:00:46]} Rc7 {[%emt 0:00:33]} 82. Rd8 {[%emt 0:00:48][%cal Of4c4]} Ne5 {[%emt 0:00:24]} 83. Rf5 {[%emt 0:00:23]} (83. Rdd4 $142 Ke2 84. Rfe4+ (84. Rf2+ Ke3 $18) 84... Kd1 85. Rxe5) 83... Re7 {[%emt 0:00:27]} 84. Rd5 {[%emt 0:00:26]} (84. Rxe5+ $142 Rxe5 85. h7) 84... Nc4 {[%emt 0:00:27]} 85. Rf4 $2 {[%emt 0:00:03]} (85. Rf3+ $18 Ke2 86. Rf2+ Ke3 87. Rf4) 85... Ne5 $2 {[%emt 0:00:27][%mdl 8192]} (85... Rc7 $11 86. Rfd4 Ke2) 86. Rf5 {[%emt 0:00:21]} Nc4 {[%emt 0:00:22]} 87. Rd8 $2 {[%emt 0:01:19]} ({White should try} 87. Rf3+ $18 Ke2 88. Rf2+ Ke3 89. Rd8) 87... Re6 $2 {[%emt 0:00:43][%mdl 8192]} (87... Ne5 $11 88. Rf6 Nc4) 88. h7 {[%emt 0:00:24]} Rh6 {[%emt 0:00:08]} 89. Rc5 {[%emt 0:00:27]} (89. Rf6 $142 Rxf6 90. h8=Q (90. h8=R $2 Rg6+ 91. Kh4 Rd6 $19) 90... Rg6+ 91. Kh4 (91. Kh2 Nd6 $18) 91... Nd6 92. Qe5+ Ne4 93. Qd4+ Kf3 94. Rf8+ Rf6 95. Rxf6+ Nxf6 96. Qxf6+ Ke2 97. Qe6+ (97. Qd4 d1=Q $18) 97... Kf2 98. Qf5+ Ke3 99. Qe6+ Kf2) 89... Rg6+ {[%emt 0:01:04]} 90. Kh4 {[%emt 0:00:09]} Nd6 {[%emt 0:00:29] [#]} 91. Rxd6 $1 {[%emt 0:00:49]} Rxd6 {[%emt 0:00:25]} 92. h8=Q {[%emt 0:00:06]} (92. h8=R $2 d1=Q (92... d1=B $2 {too greedy.} 93. Rc3+ Kd2 94. Rc5 $18) 93. Rc3+ Kd2 $19) 92... d1=Q {[%emt 0:00:05] KQR-KQR. White is a pawn up.} 93. Qe5+ {[%emt 0:00:22]} Kf2 {[%emt 0:00:50]} 94. Qg3+ {[%emt 0:01:12]} Ke2 {[%emt 0:00:15]} 95. Qh2+ {[%emt 0:00:27]} Ke3 {[%emt 0:00:30]} 96. Qe5+ {[%emt 0:00:04]} Kf2 {[%emt 0:00:11]} 97. Qf4+ {[%emt 0:00:51] White mates.} Ke2 {[%emt 0:00:20]} 98. Re5+ {[%emt 0:00:24]} Kd3 {[%emt 0:00:17]} 99. Qe3+ {[%emt 0:00:21]} Kc2 {[%emt 0:00:20]} 100. Qb3+ {[%emt 0:00:04]} Kc1 {[%emt 0:01:05]} 101. Rc5+ {[%emt 0:00:05]} Kd2 {[%emt 0:00:04]} 102. Rd5+ {[%emt 0:00:03] Weighted Error Value: White=0.12 (very precise) /Black=0.11 (very precise)   Loses game:     	---       	Black=2      Mistake:       	White=5     	Black=6      Inaccurate:     	White=2     	Black=6      OK:         	White=40    	Black=27     Best:        	White=3     	Black=11     Strong:       	White=3     	Black=4} 1-0